[Event "WYCC 2018 G18"]
[Site "Halkidiki"]
[Date "2018.10.28"]
[Round "9"]
[White "Garcia Martin, Marta"]
[Black "Gajcin, Marina"]
[Result "1-0"]
[ECO "B90"]
[WhiteElo "2329"]
[BlackElo "2153"]
[Annotator "NA"]
[PlyCount "157"]
[EventDate "2018.10.20"]
[EventType "swiss"]
[EventCountry "GRE"]
[SourceTitle "playchess.com"]
[Source "ChessBase"]
[SourceQuality "1"]
[TimeControl "40/5400+30:1800+30"]

1. e4 {[%emt 0:00:00]} c5 {[%emt 0:00:00]} 2. Nf3 {[%emt 0:00:00]} d6 {[%emt 0:00:00]} 3. d4 {[%emt 0:00:00]} cxd4 {[%emt 0:00:00]} 4. Nxd4 {[%emt 0:00:00]} Nf6 {[%emt 0:00:00]} 5. Nc3 {[%emt 0:00:00]} a6 {[%emt 0:00:00]} 6. f3 {[%emt 0:00:04]} e5 {[%emt 0:00:09]} 7. Nb3 {[%emt 0:00:06]} Be7 {[%emt 0:00:04]} 8. Be3 {[%emt 0:00:20]} Be6 {[%emt 0:00:36]} 9. Qd2 {[%emt 0:00:29]} O-O {[%emt 0:00:59]} 10. O-O-O {[%emt 0:01:06]} Nbd7 {[%emt 0:00:42]} 11. g4 {[%emt 0:00:29]} b5 {[%emt 0:00:52]} 12. g5 {[%emt 0:00:35]} b4 {[%emt 0:00:34]} 13. gxf6 {[%emt 0:01:14]} bxc3 {[%emt 0:00:21]} 14. Qxc3 {[%emt 0:00:07]} Nxf6 {[%emt 0:01:13]} 15. Na5 {[%emt 0:00:12]} Rc8 {[%emt 0:01:01]} 16. Nc6 {[%emt 0:00:13]} Qe8 {[%emt 0:00:43]} 17. Nxe7+ {[%emt 0:00:07]} Qxe7 {[%emt 0:00:05]} 18. Qa5 {[%emt 0:00:11]} Rc6 {[%emt 0:00:11]} 19. Kb1 {[%emt 0:01:55]} Rb8 {[%emt 0:25:13]} 20. Rg1 {[%emt 0:39:20]} Kh8 {[%emt 0:11:21]} 21. b3 {[%emt 0:10:12]} Qb7 {[%emt 0:03:16]} 22. Rg2 {[%emt 0:20:15]} Ne8 {[%emt 0:07:14]} 23. Bd3 {[%emt 0:02:09]} f6 {[%emt 0:08:22]} 24. Ka1 {[%emt 0:05:46]} Qf7 {[%emt 0:08:38]} 25. Rdg1 {[%emt 0:03:56]} Qb7 {[%emt 0:08:45]} 26. h4 {[%emt 0:05:25]} Rbc8 {[%emt 0:08:34]} 27. c4 {[%emt 0:01:45]} Qf7 {[%emt 0:01:19]} 28. Qe1 {[%emt 0:03:50]} R6c7 {[%emt 0:00:49]} 29. f4 {[%emt 0:00:24]} exf4 {[%emt 0:01:28]} 30. Bxf4 {[%emt 0:00:03]} Qh5 {[%emt 0:00:27]} 31. Be2 {[%emt 0:00:46]} Qc5 {[%emt 0:00:04]} 32. Qc3 {[%emt 0:00:39]} a5 {[%emt 0:00:59]} 33. h5 {[%emt 0:03:48]} a4 {[%emt 0:01:06]} 34. b4 {[%emt 0:00:30]} Qc6 {[%emt 0:00:15]} 35. h6 {[%emt 0:00:37]} g6 {[%emt 0:00:40]} 36. Bg5 {[%emt 0:00:41]} Rf7 {[%emt 0:04:37]} 37. Rf2 {[%emt 0:00:18]} Bxc4 {[%emt 0:03:00]} 38. Rc1 {[%emt 0:00:47]} d5 {[%emt 0:00:39]} 39. exd5 {[%emt 0:00:25]} Bxd5 {[%emt 0:01:59]} 40. Qd4 {[%emt 0:00:00]} Qe6 {[%emt 0:00:00]} 41. Rxc8 {[%emt 0:07:19]} Qxc8 {[%emt 0:03:03]} 42. Bb5 {[%emt 0:06:51]} Kg8 {[%emt 0:09:07]} 43. Qxd5 {[%emt 0:02:40]} Qc3+ {[%emt 0:00:57]} 44. Kb1 {[%emt 0:00:19]} Nc7 {[%emt 0:01:12]} 45. Qd8+ {[%emt 0:08:54]} Rf8 {[%emt 0:00:02]} 46. Qe7 {[%emt 0:00:53]} Rf7 {[%emt 0:00:16]} 47. Bxf6 {[%emt 0:00:38]} Rxe7 {[%emt 0:02:18]} 48. Bxc3 {[%emt 0:00:05]} Nxb5 {[%emt 0:00:03]} 49. Bg7 {[%emt 0:05:09]} Re8 {[%emt 0:01:35]} 50. Kb2 {[%emt 0:01:13]} Rd8 {[%emt 0:03:37]} 51. Rc2 {[%emt 0:01:26]} Kf7 {[%emt 0:02:37]} 52. Rc5 {[%emt 0:00:28]} Rb8 {[%emt 0:00:18]} 53. Rc6 {[%emt 0:01:12]} Re8 {[%emt 0:07:11]} 54. Rf6+ {[%emt 0:00:33]} Kg8 {[%emt 0:02:47]} 55. Rb6 {[%emt 0:00:06]} Re2+ {[%emt 0:00:26]} 56. Kc1 {[%emt 0:00:06]} Nc7 {[%emt 0:01:26]} 57. Rb8+ {[%emt 0:00:38]} Ne8 {[%emt 0:00:18]} 58. Ra8 {[%emt 0:01:05]} Kf7 {[%emt 0:00:40]} 59. Rxa4 {[%emt 0:00:22]} Nxg7 {[%emt 0:03:18]} 60. Ra7+ {[%emt 0:00:13]} Kf6 {[%emt 0:00:33]} 61. hxg7 {[%emt 0:00:26]} Re8 {[%emt 0:00:06]} 62. b5 {[%emt 0:01:02]} h5 {[%emt 0:01:36]} 63. b6 {[%emt 0:00:26]} Rb8 {[%emt 0:00:07]} 64. a4 {[%emt 0:00:35]} h4 {[%emt 0:00:06]} 65. a5 {[%emt 0:00:24]} h3 {[%emt 0:00:52]} 66. g8=Q {[%emt 0:00:13]} Rxg8 {[%emt 0:00:03]} 67. Rh7 {[%emt 0:00:07]} Ke6 {[%emt 0:01:59]} 68. Rxh3 {[%emt 0:00:44]} Rc8+ {[%emt 0:00:32]} 69. Kd2 {[%emt 0:00:24]} Rd8+ {[%emt 0:00:32]} 70. Rd3 {[%emt 0:00:15]} Rb8 {[%emt 0:00:10]} 71. Kc3 {[%emt 0:00:44]} g5 {[%emt 0:00:11]} 72. Kb4 {[%emt 0:00:10]} Rb7 {[%emt 0:01:01]} 73. Kb5 {[%emt 0:00:11]} Rf7 {[%emt 0:00:05]} 74. a6 {[%emt 0:00:37]} Rf1 {[%emt 0:00:16]} 75. a7 {[%emt 0:00:22]} Ra1 {[%emt 0:00:07]} 76. b7 {[%emt 0:00:49]} Rb1+ {[%emt 0:00:09]} 77. Kc6 {[%emt 0:00:03]} Rc1+ {[%emt 0:00:24]} 78. Kb6 {[%emt 0:00:04]} Rb1+ {[%emt 0:00:03]} 79. Kc7 {[%emt 0:00:03] Kd5} 1-0

[Event "WYCC 2018 G18"]
[Site "Halkidiki"]
[Date "2018.10.28"]
[Round "9"]
[White "Obolentseva, Alexandra"]
[Black "Di Benedetto, Desiree"]
[Result "0-1"]
[ECO "E01"]
[WhiteElo "2298"]
[BlackElo "2321"]
[Annotator "NA"]
[PlyCount "102"]
[EventDate "2018.10.20"]
[EventType "swiss"]
[EventCountry "GRE"]
[SourceTitle "playchess.com"]
[Source "ChessBase"]
[SourceQuality "1"]
[TimeControl "40/5400+30:1800+30"]

1. d4 {[%emt 0:00:00]} Nf6 {[%emt 0:00:00]} 2. c4 {[%emt 0:00:00]} e6 {[%emt 0:00:00]} 3. g3 {[%emt 0:00:10]} d5 {[%emt 0:00:13]} 4. Bg2 {[%emt 0:00:08]} Bb4+ {[%emt 0:00:31]} 5. Bd2 {[%emt 0:00:10]} Be7 {[%emt 0:00:13]} 6. Nf3 {[%emt 0:00:08]} O-O {[%emt 0:00:16]} 7. O-O {[%emt 0:00:30]} c6 {[%emt 0:00:34]} 8. Qc2 {[%emt 0:00:08]} b6 {[%emt 0:01:39]} 9. Bf4 {[%emt 0:00:34]} Ba6 {[%emt 0:01:51]} 10. b3 {[%emt 0:00:21]} Nbd7 {[%emt 0:00:08]} 11. Rd1 {[%emt 0:01:33]} Rc8 {[%emt 0:00:08]} 12. Nc3 {[%emt 0:03:20]} Qe8 {[%emt 0:00:34]} 13. e4 {[%emt 0:04:00]} dxc4 {[%emt 0:00:14]} 14. bxc4 {[%emt 0:01:05]} Bxc4 {[%emt 0:00:15]} 15. Nd2 {[%emt 0:01:24]} Ba6 {[%emt 0:00:07]} 16. Qa4 {[%emt 0:05:29]} Bd3 {[%emt 0:00:35]} 17. Qb3 {[%emt 0:10:19]} c5 {[%emt 0:15:22]} 18. d5 {[%emt 0:00:15]} c4 {[%emt 0:05:54]} 19. Qb2 {[%emt 0:08:13]} e5 {[%emt 0:02:55]} 20. Be3 {[%emt 0:01:42]} Ng4 {[%emt 0:06:43]} 21. Nf1 {[%emt 0:00:57]} Nxe3 {[%emt 0:05:09]} 22. Nxe3 {[%emt 0:00:16]} Bc5 {[%emt 0:01:21]} 23. Bh3 {[%emt 0:08:21]} Rb8 {[%emt 0:09:26]} 24. Nc2 {[%emt 0:08:55]} Nf6 {[%emt 0:12:13]} 25. Nb4 {[%emt 0:07:13]} Bd4 {[%emt 0:05:09]} 26. Bg2 {[%emt 0:08:38]} b5 {[%emt 0:04:12]} 27. a3 {[%emt 0:08:16]} a5 {[%emt 0:02:50]} 28. Nc6 {[%emt 0:00:51]} b4 {[%emt 0:08:11]} 29. axb4 {[%emt 0:00:18]} axb4 {[%emt 0:00:03]} 30. Nxd4 {[%emt 0:04:24]} exd4 {[%emt 0:06:48]} 31. Na4 {[%emt 0:03:55]} c3 {[%emt 0:02:28]} 32. Qb3 {[%emt 0:00:13]} Qb5 {[%emt 0:00:22]} 33. e5 {[%emt 0:02:36]} Bc4 {[%emt 0:01:13]} 34. Qb1 {[%emt 0:00:25]} d3 {[%emt 0:04:23]} 35. exf6 {[%emt 0:00:06]} c2 {[%emt 0:00:10]} 36. Qc1 {[%emt 0:00:07]} cxd1=Q+ {[%emt 0:00:17]} 37. Qxd1 {[%emt 0:00:05]} g6 {[%emt 0:03:48]} 38. Qd2 {[%emt 0:02:58]} Kh8 {[%emt 0:00:04]} 39. d6 {[%emt 0:01:22]} Bd5 {[%emt 0:00:52]} 40. Bf1 {[%emt 0:00:00]} Ra8 {[%emt 0:00:00]} 41. Bxd3 {[%emt 0:02:57]} Qb7 {[%emt 0:14:40]} 42. Bf1 {[%emt 0:00:41]} b3 43. Re1 {[%emt 0:03:11]} Rg8 {[%emt 0:09:02]} 44. Nc3 {[%emt 0:01:13]} b2 {[%emt 0:02:01]} 45. Re7 {[%emt 0:02:09]} Qb3 {[%emt 0:02:16]} 46. d7 {[%emt 0:01:54]} Qxc3 {[%emt 0:01:50]} 47. Qxd5 {[%emt 0:01:15]} b1=Q {[%emt 0:01:18]} 48. Qxf7 {[%emt 0:00:13]} g5 {[%emt 0:01:42]} 49. Re8 {[%emt 0:00:28]} Qg6 {[%emt 0:03:10]} 50. Qxg6 {[%emt 0:01:09]} hxg6 {[%emt 0:00:02]} 51. f7 {[%emt 0:00:06]} Rf8 {[%emt 0:00:12]} 0-1

[Event "WYCC 2018 G18"]
[Site "Halkidiki"]
[Date "2018.10.28"]
[Round "9"]
[White "Avramidou, Anastasia"]
[Black "Kiolbasa, Oliwia"]
[Result "1/2-1/2"]
[ECO "A50"]
[WhiteElo "2285"]
[BlackElo "2254"]
[Annotator "NA"]
[PlyCount "151"]
[EventDate "2018.10.20"]
[EventType "swiss"]
[EventCountry "GRE"]
[SourceTitle "playchess.com"]
[Source "ChessBase"]
[SourceQuality "1"]
[TimeControl "40/5400+30:1800+30"]

1. c4 {[%emt 0:00:00]} b6 {[%emt 0:00:00]} 2. d4 {[%emt 0:00:00]} Nf6 {[%emt 0:00:00]} 3. f3 {[%emt 0:00:00]} Nc6 {[%emt 0:00:15]} 4. Nc3 {[%emt 0:00:25]} e5 {[%emt 0:00:39]} 5. d5 {[%emt 0:00:05]} Ne7 {[%emt 0:00:13]} 6. e4 {[%emt 0:00:08]} Ng6 {[%emt 0:00:14]} 7. Be3 {[%emt 0:00:04]} Bc5 {[%emt 0:01:15]} 8. Qd2 {[%emt 0:00:05]} O-O {[%emt 0:01:44]} 9. O-O-O {[%emt 0:00:23]} d6 {[%emt 0:01:29]} 10. Kb1 {[%emt 0:05:08]} a5 {[%emt 0:01:40]} 11. h4 {[%emt 0:05:04]} Ba6 {[%emt 0:18:48]} 12. h5 {[%emt 0:16:56]} Bxe3 {[%emt 0:01:25]} 13. Qxe3 {[%emt 0:00:08]} Nf4 {[%emt 0:01:24]} 14. h6 {[%emt 0:11:42]} g6 {[%emt 0:00:48]} 15. g3 {[%emt 0:02:51]} N4h5 {[%emt 0:00:15]} 16. f4 {[%emt 0:09:41]} Nd7 {[%emt 0:08:58]} 17. Be2 {[%emt 0:06:01]} Nhf6 {[%emt 0:01:08]} 18. Nh3 $18 {[%emt 0:00:05]} Qe7 {[%emt 0:04:36]} 19. Ng5 {[%emt 0:07:55]} Nc5 {[%emt 0:01:36]} 20. Rdf1 {[%emt 0:07:17]} Bc8 {[%emt 0:17:49]} 21. Rh4 {[%emt 0:05:26]} Bd7 {[%emt 0:01:51]} 22. Rh2 {[%emt 0:07:02]} Ne8 {[%emt 0:04:40]} 23. f5 {[%emt 0:03:08]} gxf5 {[%emt 0:13:26]} 24. exf5 {[%emt 0:00:06]} Nf6 {[%emt 0:00:05]} 25. Nge4 {[%emt 0:02:57]} Nfxe4 {[%emt 0:04:51]} 26. f6 {[%emt 0:00:49]} Qd8 {[%emt 0:00:05]} 27. Nxe4 {[%emt 0:00:05]} Kh8 {[%emt 0:00:04]} 28. Ng5 {[%emt 0:04:36]} Qe8 {[%emt 0:00:55]} 29. Rh4 {[%emt 0:02:10]} Rg8 {[%emt 0:01:57]} 30. Bh5 {[%emt 0:00:12]} Rg6 {[%emt 0:00:33]} 31. Bxg6 {[%emt 0:00:12]} hxg6 {[%emt 0:00:04]} 32. Ne4 {[%emt 0:02:11]} Nxe4 {[%emt 0:00:20]} 33. Qxe4 {[%emt 0:00:06]} Kh7 {[%emt 0:00:07]} 34. g4 {[%emt 0:00:32]} Qc8 {[%emt 0:00:37]} 35. Rg1 {[%emt 0:00:43]} Qd8 {[%emt 0:02:59]} 36. Qf3 {[%emt 0:01:20]} Rb8 {[%emt 0:00:17]} 37. Rh2 {[%emt 0:00:13]} Rb7 {[%emt 0:00:27]} 38. Rc2 {[%emt 0:00:45]} Rb8 {[%emt 0:00:07]} 39. Rf2 {[%emt 0:00:17]} Rb7 {[%emt 0:00:11]} 40. Qe4 {[%emt 0:00:00]} Rb8 {[%emt 0:00:00]} 41. Kc1 {[%emt 0:02:19]} Rb7 {[%emt 0:02:55]} 42. Kd1 {[%emt 0:01:30]} Rb8 {[%emt 0:00:16]} 43. Rg3 {[%emt 0:00:53]} Ra8 {[%emt 0:00:14]} 44. Ke1 {[%emt 0:00:27]} Rb8 {[%emt 0:00:17]} 45. Kf1 {[%emt 0:00:16]} Ra8 {[%emt 0:00:13]} 46. Kg1 {[%emt 0:00:05]} Qc8 {[%emt 0:00:10]} 47. b3 {[%emt 0:00:16]} Ra7 {[%emt 0:00:13]} 48. Kh2 {[%emt 0:01:14]} Ra8 {[%emt 0:00:40]} 49. a3 {[%emt 0:00:06]} Ra7 {[%emt 0:00:21]} 50. Ra2 {[%emt 0:07:45]} Qd8 {[%emt 0:01:52]} 51. Qf3 {[%emt 0:00:20]} Qc8 {[%emt 0:00:10]} 52. Rgg2 {[%emt 0:00:13]} Qa8 {[%emt 0:00:06]} 53. Rgf2 {[%emt 0:01:25]} Qc8 {[%emt 0:02:02]} 54. Kg3 {[%emt 0:00:06]} Qa8 {[%emt 0:00:04]} 55. Qe4 {[%emt 0:01:40]} Ra6 {[%emt 0:01:24]} 56. Rfc2 {[%emt 0:01:42]} Ra7 {[%emt 0:01:04]} 57. Rd2 {[%emt 0:00:05]} Qd8 {[%emt 0:02:16]} 58. Qf3 {[%emt 0:00:13]} Qa8 {[%emt 0:00:06]} 59. Rdc2 {[%emt 0:01:21]} Ra6 {[%emt 0:01:10]} 60. Qe2 {[%emt 0:00:27]} Ra7 {[%emt 0:00:07]} 61. b4 {[%emt 0:01:03]} Qd8 {[%emt 0:00:12]} 62. Qf3 {[%emt 0:00:15]} Qa8 {[%emt 0:00:30]} 63. Qf2 {[%emt 0:00:43]} Ba4 {[%emt 0:00:48]} 64. Rcb2 {[%emt 0:02:01]} Bd7 {[%emt 0:00:32]} 65. Rd2 {[%emt 0:01:15]} Qc8 {[%emt 0:00:39]} 66. Qf3 {[%emt 0:00:19]} Qa8 {[%emt 0:00:12]} 67. Qf2 {[%emt 0:00:03]} Qc8 {[%emt 0:00:06]} 68. Qe2 {[%emt 0:00:18]} Qd8 {[%emt 0:00:08]} 69. c5 {[%emt 0:05:40]} Qxf6 {[%emt 0:14:19]} 70. Qf2 {[%emt 0:00:05]} Qxf2+ {[%emt 0:00:27]} 71. Rxf2 {[%emt 0:00:03]} f5 {[%emt 0:00:22]} 72. bxa5 {[%emt 0:04:15]} Rxa5 {[%emt 0:02:11]} 73. cxb6 {[%emt 0:00:30]} cxb6 {[%emt 0:00:07]} 74. g5 {[%emt 0:04:28]} f4+ {[%emt 0:04:38]} 75. Kh2 {[%emt 0:00:03]} Ba4 {[%emt 0:06:08]} 76. Rab2 {[%emt 0:00:25]} 1/2-1/2

[Event "WYCC 2018 G18"]
[Site "Halkidiki"]
[Date "2018.10.28"]
[Round "9"]
[White "Sliwicka, Alicja"]
[Black "Zairbek kyzy, Begimay"]
[Result "1-0"]
[ECO "B16"]
[WhiteElo "2264"]
[BlackElo "1919"]
[Annotator "NA"]
[PlyCount "91"]
[EventDate "2018.10.20"]
[EventType "swiss"]
[EventCountry "GRE"]
[SourceTitle "playchess.com"]
[Source "ChessBase"]
[SourceQuality "1"]
[TimeControl "40/5400+30:1800+30"]

1. e4 {[%emt 0:00:00]} c6 {[%emt 0:00:00]} 2. d4 {[%emt 0:00:00]} d5 {[%emt 0:00:00]} 3. Nc3 {[%emt 0:00:00]} dxe4 {[%emt 0:00:00]} 4. Nxe4 {[%emt 0:00:00]} Nf6 {[%emt 0:00:00]} 5. Nxf6+ {[%emt 0:00:02]} gxf6 {[%emt 0:00:00]} 6. c3 {[%emt 0:00:14]} Bf5 {[%emt 0:00:34]} 7. Nf3 {[%emt 0:00:09]} e6 {[%emt 0:00:26]} 8. g3 {[%emt 0:00:18]} Bd6 {[%emt 0:00:12]} 9. Bg2 {[%emt 0:00:16]} Nd7 {[%emt 0:00:12]} 10. O-O {[%emt 0:00:44]} Qc7 {[%emt 0:00:43]} 11. Re1 {[%emt 0:03:58]} e5 {[%emt 0:08:28]} 12. d5 {[%emt 0:18:53]} c5 {[%emt 0:07:28]} 13. Nh4 {[%emt 0:06:46]} Bg6 {[%emt 0:00:11]} 14. f4 {[%emt 0:04:35]} f5 {[%emt 0:06:48]} 15. fxe5 $16 {[%emt 0:03:39]} Nxe5 {[%emt 0:01:23]} 16. Bh3 {[%emt 0:01:16]} O-O-O {[%emt 0:04:02]} 17. Nxf5 {[%emt 0:05:40]} Bxf5 {[%emt 0:01:53]} 18. Bxf5+ {[%emt 0:00:09]} Kb8 {[%emt 0:00:03]} 19. Qh5 {[%emt 0:05:15]} f6 {[%emt 0:01:45]} 20. Bf4 {[%emt 0:09:48]} Rdg8 {[%emt 0:04:28]} 21. Kh1 {[%emt 0:01:04]} c4 {[%emt 0:07:25]} 22. Rad1 {[%emt 0:01:06]} Rd8 {[%emt 0:01:28]} 23. Re2 {[%emt 0:03:21]} Qa5 {[%emt 0:04:57]} 24. Qh4 {[%emt 0:03:59]} Rdf8 {[%emt 0:14:05]} 25. Bh6 {[%emt 0:04:13]} Rf7 {[%emt 0:15:48]} 26. Be6 {[%emt 0:00:55]} Ng6 {[%emt 0:01:50]} 27. Qxc4 {[%emt 0:01:49]} Rc7 {[%emt 0:00:05]} 28. Qd4 {[%emt 0:01:32]} Qa6 {[%emt 0:01:22]} 29. Red2 {[%emt 0:04:00]} Be5 {[%emt 0:01:35]} 30. Qd3 {[%emt 0:01:05]} Qd6 {[%emt 0:00:58]} 31. c4 {[%emt 0:00:52]} b6 {[%emt 0:00:32]} 32. a3 {[%emt 0:01:41]} Rd8 {[%emt 0:01:58]} 33. b4 {[%emt 0:01:07]} Qe7 {[%emt 0:00:48]} 34. Be3 {[%emt 0:03:02]} Bd6 {[%emt 0:00:13]} 35. Bd4 {[%emt 0:00:59]} Ne5 {[%emt 0:01:01]} 36. Bxe5 {[%emt 0:00:09]} Bxe5 {[%emt 0:00:02]} 37. Qe4 {[%emt 0:02:05]} Qd6 {[%emt 0:00:27]} 38. Rc1 {[%emt 0:03:21]} a5 {[%emt 0:00:47]} 39. bxa5 {[%emt 0:01:45]} Qxa3 {[%emt 0:00:22]} 40. Rdc2 {[%emt 0:00:00]} Qxa5 {[%emt 0:00:00]} 41. c5 {[%emt 0:09:59]} Rxc5 {[%emt 0:09:28]} 42. Rxc5 {[%emt 0:00:18]} bxc5 {[%emt 0:00:02]} 43. Rb1+ {[%emt 0:01:09]} Kc7 {[%emt 0:01:51]} 44. Qxh7+ {[%emt 0:01:58]} Kd6 {[%emt 0:00:10]} 45. Qb7 {[%emt 0:01:49]} Qc7 {[%emt 0:02:18]} 46. Qa6+ {[%emt 0:00:39]} 1-0

[Event "WYCC 2018 G18"]
[Site "Halkidiki"]
[Date "2018.10.28"]
[Round "9"]
[White "Injac, Teodora"]
[Black "Sargsyan, Anna M."]
[Result "1-0"]
[ECO "D70"]
[WhiteElo "2258"]
[BlackElo "2331"]
[Annotator "NA"]
[PlyCount "63"]
[EventDate "2018.10.20"]
[EventType "swiss"]
[EventCountry "GRE"]
[SourceTitle "playchess.com"]
[Source "ChessBase"]
[SourceQuality "1"]
[TimeControl "40/5400+30:1800+30"]

1. d4 {[%emt 0:00:00]} d5 {[%emt 0:00:00]} 2. c4 {[%emt 0:00:00]} c6 {[%emt 0:00:00]} 3. Nf3 {[%emt 0:00:00]} Nf6 {[%emt 0:00:00]} 4. Nbd2 {[%emt 0:00:10]} Bf5 {[%emt 0:00:46]} 5. Nh4 {[%emt 0:00:22]} Be4 {[%emt 0:00:26]} 6. e3 {[%emt 0:00:57]} e6 {[%emt 0:01:02]} 7. Be2 {[%emt 0:00:26]} Nbd7 {[%emt 0:04:15]} 8. O-O {[%emt 0:04:47]} g5 {[%emt 0:04:04]} 9. Nhf3 {[%emt 0:00:32]} Rg8 {[%emt 0:05:16]} 10. Nxe4 {[%emt 0:04:21]} Nxe4 {[%emt 0:00:10]} 11. Nd2 {[%emt 0:03:54]} Nd6 {[%emt 0:05:35]} 12. Qc2 {[%emt 0:10:28]} Nf5 {[%emt 0:07:08]} 13. Bd3 {[%emt 0:18:34]} Nh4 {[%emt 0:04:48]} 14. e4 {[%emt 0:03:08]} dxc4 {[%emt 0:04:59]} 15. Nxc4 {[%emt 0:00:51]} Qc7 {[%emt 0:03:43]} 16. e5 {[%emt 0:11:55]} h6 $16 {[%emt 0:07:18]} 17. Be3 {[%emt 0:01:13]} Nb6 {[%emt 0:15:43]} 18. Nxb6 {[%emt 0:00:53]} axb6 {[%emt 0:00:18]} 19. Bh7 {[%emt 0:13:12]} Rg7 {[%emt 0:01:28]} 20. Be4 {[%emt 0:00:12]} Ng6 {[%emt 0:04:21]} 21. a4 {[%emt 0:02:45]} Nf4 {[%emt 0:05:02]} 22. Bxf4 {[%emt 0:07:26]} gxf4 {[%emt 0:00:03]} 23. Qc4 {[%emt 0:02:21]} Rd8 {[%emt 0:04:14]} 24. b4 {[%emt 0:02:22]} Qd7 {[%emt 0:01:21]} 25. Rfd1 {[%emt 0:00:33]} Rg5 {[%emt 0:04:30]} 26. Bf3 {[%emt 0:00:50]} Qe7 {[%emt 0:04:23]} 27. Rab1 {[%emt 0:01:50]} Rg7 {[%emt 0:03:35]} 28. Qc3 {[%emt 0:01:05]} Qg5 {[%emt 0:02:17]} 29. a5 {[%emt 0:02:24]} Be7 {[%emt 0:01:24]} 30. axb6 {[%emt 0:00:50]} f6 {[%emt 0:01:04]} 31. b5 {[%emt 0:01:36]} c5 {[%emt 0:00:55]} 32. dxc5 {[%emt 0:02:25]} 1-0

[Event "WYCC 2018 G18"]
[Site "Halkidiki"]
[Date "2018.10.28"]
[Round "9"]
[White "Antolak, Julia"]
[Black "Avetisyan, Mariam"]
[Result "1-0"]
[ECO "B18"]
[WhiteElo "2240"]
[BlackElo "2049"]
[Annotator "NA"]
[PlyCount "91"]
[EventDate "2018.10.20"]
[EventType "swiss"]
[EventCountry "GRE"]
[SourceTitle "playchess.com"]
[Source "ChessBase"]
[SourceQuality "1"]
[TimeControl "40/5400+30:1800+30"]

1. e4 {[%emt 0:00:00]} c6 {[%emt 0:00:00]} 2. d4 {[%emt 0:00:00]} d5 {[%emt 0:00:00]} 3. Nc3 {[%emt 0:00:00]} dxe4 {[%emt 0:00:00]} 4. Nxe4 {[%emt 0:00:00]} Bf5 {[%emt 0:00:00]} 5. Ng3 {[%emt 0:00:00]} Bg6 {[%emt 0:00:00]} 6. h4 {[%emt 0:00:04]} h6 {[%emt 0:00:00]} 7. Nf3 {[%emt 0:00:05]} e6 {[%emt 0:00:00]} 8. h5 {[%emt 0:00:43]} Bh7 {[%emt 0:00:00]} 9. Bd3 {[%emt 0:00:06]} Bxd3 {[%emt 0:00:00]} 10. Qxd3 {[%emt 0:00:05]} Nf6 {[%emt 0:00:00]} 11. Bd2 {[%emt 0:00:29]} Be7 {[%emt 0:00:05]} 12. O-O-O {[%emt 0:00:16]} O-O {[%emt 0:00:04]} 13. Ne4 {[%emt 0:00:59]} Nxe4 {[%emt 0:00:06]} 14. Qxe4 {[%emt 0:00:03]} Qd5 {[%emt 0:00:03]} 15. Qg4 {[%emt 0:00:20]} Kh8 {[%emt 0:15:57]} 16. Kb1 {[%emt 0:00:15]} Nd7 {[%emt 0:03:40]} 17. Qh3 {[%emt 0:06:58]} Nf6 {[%emt 0:09:13]} 18. g4 {[%emt 0:14:02]} Ne4 {[%emt 0:02:20]} 19. Be3 {[%emt 0:00:56]} a5 {[%emt 0:15:20]} 20. Ne5 {[%emt 0:06:59]} b5 {[%emt 0:09:47]} 21. f3 {[%emt 0:09:00]} Nd6 {[%emt 0:07:33]} 22. g5 {[%emt 0:08:02]} Nf5 {[%emt 0:22:18]} 23. Bc1 {[%emt 0:03:11]} Bxg5 {[%emt 0:05:02]} 24. Bxg5 {[%emt 0:04:58]} hxg5 {[%emt 0:00:03]} 25. Rhg1 {[%emt 0:01:05]} Qd8 {[%emt 0:04:26]} 26. Nxc6 {[%emt 0:05:22]} Qc7 {[%emt 0:00:05]} 27. Ne5 {[%emt 0:01:04]} Rfc8 {[%emt 0:00:03]} 28. Rd2 {[%emt 0:07:46]} f6 {[%emt 0:02:07]} 29. Ng4 {[%emt 0:03:50]} Qf4 {[%emt 0:00:49]} 30. Rgd1 {[%emt 0:03:46]} Nh4 {[%emt 0:00:28]} 31. Rd3 {[%emt 0:00:55]} Ra6 {[%emt 0:01:09]} 32. Qf1 {[%emt 0:04:18]} Rac6 {[%emt 0:00:07]} 33. R1d2 {[%emt 0:00:13]} b4 {[%emt 0:01:00]} 34. Qe2 {[%emt 0:02:41]} Rd6 {[%emt 0:03:36]} 35. Nf2 {[%emt 0:06:06]} f5 {[%emt 0:01:00]} 36. Nh3 {[%emt 0:03:24]} Qg3 {[%emt 0:00:05]} 37. f4 {[%emt 0:00:17]} Qg4 {[%emt 0:00:15]} 38. Nxg5 {[%emt 0:01:25]} Rf8 {[%emt 0:01:22]} 39. Qh2 {[%emt 0:02:31]} e5 {[%emt 0:00:50]} 40. dxe5 {[%emt 0:00:00]} Rxd3 {[%emt 0:00:00]} 41. Rxd3 {[%emt 0:09:30]} Ng2 {[%emt 0:05:37]} 42. h6 {[%emt 0:11:12]} g6 {[%emt 0:00:11]} 43. Qg1 {[%emt 0:00:55]} Qe2 {[%emt 0:08:59]} 44. e6 {[%emt 0:01:36]} Qe1+ {[%emt 0:04:44]} 45. Qxe1 {[%emt 0:00:10]} Nxe1 {[%emt 0:00:03]} 46. e7 {[%emt 0:00:11]} 1-0